bitfinex/quotes_ETHUSD_20240710
["timestamp","ask_amount","ask_price","bid_price","bid_amount"]
[1720652093680,0.04407315,3108.1,3108.0,8.01815555]
[1720652096523,0.04407315,3108.1,3108.0,8.69214881]
[1720652096947,0.04407315,3108.1,3108.0,5.89188518]
[1720652097127,0.04407315,3108.1,3108.0,8.69213548]
[1720652098343,0.04407315,3108.1,3108.0,14.90963548]
[1720652098688,0.04407315,3108.1,3108.0,19.87070689]
[1720652100438,0.04407315,3108.1,3108.0,18.75060677]
[1720652100604,0.04407315,3108.1,3108.0,19.87049825]
[1720652101594,0.04407315,3108.1,3108.0,16.61943358]
[1720652102434,0.04407315,3108.1,3108.0,17.29463698]
[1720652102934,0.04407315,3108.1,3108.0,14.07713698]
[1720652103142,0.04407315,3108.1,3108.0,11.01816754]
[1720652103699,0.04407315,3108.1,3108.0,11.69337094]
[1720652104425,0.04407315,3108.1,3108.0,14.91087094]
[1720652104612,0.04407315,3108.1,3108.0,19.76322886]
[1720652106535,0.04407315,3108.1,3108.0,19.76302875]
[1720652108707,0.04407315,3108.1,3108.0,18.75203886]
[1720652110132,0.04407315,3108.1,3108.0,20.10299187]
[1720652111240,0.04407315,3108.1,3108.0,18.75200985]
[1720652112545,0.04407315,3108.1,3108.0,20.10299187]
[1720652113455,0.04407315,3108.1,3108.0,20.10299935]
[1720652113653,0.04407315,3108.1,3108.0,19.76563085]
[1720652114150,0.04407315,3108.1,3108.0,16.5119459]
[1720652114361,0.04407315,3108.1,3108.0,19.76576373]
[1720652114652,0.04407315,3108.1,3108.0,18.75215021]
[1720652115445,0.04407315,3108.1,3108.0,20.10313223]
[1720652116859,0.04407315,3108.1,3108.0,17.30307825]
[1720652117060,0.33683163,3108.8,3108.2,3.21725]
[1720652117240,0.33683163,3108.8,3108.7,3.93477]
[1720652117442,0.33683163,3108.8,3108.7,7.41072557]
[1720652117774,2.4239,3109.3,3108.7,7.96072557]
[1720652117936,7.77680262,3109.4,3108.9,3.21651]
[1720652118136,0.33680262,3109.4,3109.3,0.718]
[1720652118368,2.76070262,3109.4,3109.3,1.268]
[1720652125559,3.03677288,3109.4,3109.0,0.718]
[1720652125994,2.2582,3109.3,3108.4,7.4]
[1720652126160,2.2582,3109.3,3108.7,0.718]
[1720652137483,2.2582,3109.3,3108.2,0.67532952]
[1720652137701,0.61287288,3109.4,3108.3,1.268]
[1720652137702,2.427,3109.1,3108.3,1.268]
[1720652137907,2.427,3109.1,3108.3,0.55]
[1720652138434,2.427,3108.9,3108.3,0.55]
[1720652138907,2.427,3108.9,3108.4,0.718]
[1720652139437,2.427,3108.9,3108.6,0.718]
[1720652139608,2.70338333,3108.9,3108.6,0.718]
[1720652142236,2.70338333,3108.9,3108.4,0.718]
[1720652147448,0.07640149,3108.8,3108.4,0.718]
[1720652171617,0.07640149,3108.8,3108.7,2.3486]
[1720652171766,0.07640149,3108.8,3108.6,0.718]
[1720652178433,0.07640149,3108.8,3108.7,0.55]
[1720652178721,0.07640149,3108.8,3108.7,0.91124]
[1720652178927,0.07640149,3108.8,3108.7,3.71123923]
[1720652179095,0.07640149,3108.8,3108.7,4.38761599]
[1720652179612,0.07640149,3108.8,3108.7,6.05563923]
[1720652180194,0.07640149,3108.8,3108.7,6.1199632]
[1720652180496,0.07640149,3108.8,3108.7,9.1199632]
[1720652181487,0.07640149,3108.8,3108.7,15.5535032]
[1720652181813,0.33683325,3109.0,3108.9,5.56097]
[1720652182021,2.4,3109.9,3108.9,11.86135626]
[1720652182227,0.33680152,3109.7,3109.5,0.718]
[1720652182795,0.33680152,3109.7,3109.3,0.718]
[1720652183014,0.33680152,3109.7,3109.4,0.55]
[1720652183226,2.4,3109.6,3109.1,0.718]
[1720652183497,2.4,3109.6,3109.2,0.55]
[1720652185354,2.67368015,3109.6,3108.7,2.3444]
[1720652185603,2.67368015,3109.6,3108.8,0.718]
[1720652186940,2.67368015,3109.6,3108.9,0.55]
[1720652187894,2.67368015,3109.6,3109.0,0.718]
[1720652188095,0.30104817,3109.5,3109.0,0.718]
[1720652190374,2.4,3109.6,3109.0,0.718]
[1720652194702,2.4,3109.6,3109.2,0.718]
[1720652195047,2.4,3109.6,3109.3,0.55]
[1720652195532,2.4,3109.6,3109.2,0.718]
[1720652195843,2.4,3109.6,3109.0,0.718]
[1720652196007,2.4,3109.6,3109.1,0.55]
[1720652200332,2.67368015,3109.6,3109.1,0.55]
[1720652200837,2.67368015,3109.6,3109.0,0.718]
[1720652214655,2.67368015,3109.6,3108.8,0.718]
[1720652221132,2.4,3109.6,3109.0,0.718]
[1720652224664,2.4,3109.6,3108.8,0.718]
[1720652224867,2.4,3109.6,3108.9,1.12001929]
[1720652225069,2.4,3109.6,3108.8,0.718]
[1720652229180,2.4,3109.6,3109.0,0.718]
[1720652229482,2.4,3109.6,3109.2,0.718]
[1720652229860,2.4,3109.6,3109.0,1.0311]
[1720652234167,2.4,3109.6,3109.0,0.718]
[1720652234495,2.4,3109.6,3108.8,0.718]
[1720652234699,2.4,3109.6,3108.9,3.35001962]
[1720652234900,2.4,3109.6,3108.9,0.55]
[1720652237407,0.07022124,3109.5,3108.9,0.55]
[1720652237571,2.2951,3109.4,3108.9,0.74435703]
[1720652238186,0.33683167,3109.3,3108.9,0.74435703]
[1720652247560,0.33683167,3109.3,3108.9,0.55]
[1720652247771,2.3576,3109.2,3108.7,0.67643343]
[1720652247918,0.718,3109.1,3108.2,0.67643343]
[1720652248259,2.3576,3109.0,3108.3,1.12020308]
[1720652248556,2.3576,3109.0,3108.1,0.718]
[1720652248763,2.3576,3109.0,3108.2,1.12024366]
[1720652249061,2.3576,3109.0,3108.1,1.10059334]
[1720652249299,2.3576,3109.0,3108.3,0.718]
[1720652253659,0.3368453,3108.9,3108.3,0.718]
[1720652262758,2.483,3108.8,3108.3,0.718]
[1720652265201,2.76498453,3108.8,3108.1,0.718]
[1720652265812,2.76498453,3108.8,3107.9,0.718]
[1720652266004,2.76498453,3108.8,3108.0,0.55]
[1720652276203,2.4971,3108.7,3107.5,2.2607]
[1720652276408,2.4971,3108.5,3107.7,0.718]
[1720652276601,2.4971,3108.5,3107.8,0.55]
[1720652277084,0.33684518,3108.4,3107.8,0.55]
[1720652277285,2.4971,3108.3,3107.8,0.55]
[1720652283617,2.4971,3108.3,3107.7,0.718]
[1720652284009,2.78049452,3108.3,3107.7,0.718]
[1720652284212,2.78049452,3108.3,3107.5,0.718]
[1720652284387,2.78049452,3108.3,3107.6,0.55]
[1720652285822,2.78049452,3108.3,3107.3,0.718]
[1720652287404,2.78049452,3108.3,3107.5,0.718]
[1720652290185,2.76133397,3108.2,3107.5,0.718]
[1720652293115,2.3778,3108.2,3107.5,0.718]
[1720652297312,2.3778,3108.2,3107.4,0.55]
[1720652297514,2.3778,3108.2,3107.4,0.718]
[1720652298620,2.3778,3108.2,3107.6,0.718]
[1720652300944,0.33684518,3108.4,3108.0,0.718]
[1720652301238,0.33684518,3108.4,3108.3,0.718]
[1720652301416,2.3566,3108.8,3108.3,0.718]
[1720652302355,2.3361,3109.3,3108.4,2.4101]
[1720652302682,2.3361,3109.3,3108.5,1.268]
[1720652303145,2.3361,3109.3,3108.7,0.718]
[1720652303757,2.57673212,3109.3,3108.7,0.718]
[1720652303962,2.57673212,3109.3,3108.5,1.268]
[1720652305632,2.3361,3109.3,3108.5,1.268]
[1720652308825,2.3361,3109.3,3108.7,0.718]
[1720652309039,5.81167766,3109.5,3108.7,0.718]
[1720652311871,5.81167766,3109.5,3108.8,2.2601]
[1720652314540,3.40707766,3109.5,3108.9,0.55]
[1720652314731,0.40707766,3109.5,3109.0,0.28101]
[1720652320236,0.40707766,3109.5,3108.9,1.268]
[1720652320427,0.40707766,3109.5,3108.9,0.55]
[1720652321968,2.4857,3109.4,3108.5,3.0803]
[1720652322180,2.4857,3109.4,3108.6,0.55]
[1720652323771,2.84677777,3109.4,3108.5,3.0803]
[1720652324160,2.84677777,3109.4,3108.7,0.718]
[1720652324784,2.84677777,3109.4,3108.6,0.718]
[1720652325992,3.56477777,3109.4,3108.5,2.3623]
[1720652326202,3.56477777,3109.4,3108.5,3.0803]
[1720652326495,0.39718554,3109.3,3108.5,3.0803]
[1720652328656,2.4857,3109.4,3108.7,0.718]
[1720652329700,0.06538877,3109.3,3108.7,0.718]
[1720652332165,0.06538877,3109.3,3108.8,2.3077]
[1720652332367,0.06538877,3109.3,3108.9,0.718]
[1720652345516,0.06538877,3109.3,3109.1,0.718]
[1720652345715,0.06538877,3109.3,3109.2,2.9311]
[1720652345915,0.06538877,3109.3,3109.2,3.35101]
[1720652352835,0.06538877,3109.3,3109.2,3.41532827]
[1720652353156,0.06538877,3109.3,3109.2,3.35101]
[1720652353747,0.06538877,3109.3,3109.2,4.47078473]
[1720652354127,0.06538877,3109.3,3109.2,3.35101]
[1720652356344,0.06538877,3109.3,3109.2,0.96991]
[1720652356543,0.06538877,3109.3,3109.2,0.55]
[1720652359243,2.45708877,3109.3,3108.9,0.718]
[1720652360481,2.45708877,3109.3,3109.0,0.55]
[1720652361040,2.45708877,3109.3,3108.9,0.718]
[1720652361355,2.45708877,3109.3,3109.0,0.55]
[1720652368087,0.06538877,3109.3,3109.0,0.55]
[1720652370776,2.3645,3109.2,3109.0,0.55]
[1720652371287,2.60748888,3109.2,3108.5,0.718]
[1720652371607,2.60748888,3109.2,3108.3,0.718]
[1720652371608,2.3645,3109.2,3108.3,0.718]
[1720652373196,2.3645,3109.2,3108.4,0.55]
[1720652373595,2.3645,3109.2,3108.2,0.55]
[1720652373807,2.3093,3109.0,3108.3,0.718]
[1720652374093,2.3093,3109.0,3108.4,0.55]
[1720652375274,2.3093,3109.0,3108.2,1.268]
[1720652376198,2.3093,3108.7,3107.9,0.718]
[1720652376381,2.3093,3108.7,3108.0,0.55]
[1720652376382,0.30273,3108.6,3108.0,0.55]
[1720652378182,2.2859,3108.5,3107.7,0.718]
[1720652378366,2.2859,3108.5,3107.8,0.55]
[1720652380861,2.2859,3108.5,3107.9,0.718]
[1720652381066,2.4972,3109.1,3108.1,0.718]
[1720652381504,5.4972,3109.1,3108.2,0.55]
[1720652388489,3.0,3109.1,3108.2,0.55]
[1720652388694,2.4762,3108.9,3108.2,0.55]
[1720652388932,2.4762,3108.9,3107.9,0.718]
[1720652391738,2.4762,3108.9,3108.0,2.384]
[1720652392288,2.4762,3108.9,3108.1,0.718]
[1720652392736,2.3248,3109.1,3108.3,2.384]
[1720652392923,2.39018877,3109.3,3108.5,0.718]
[1720652393090,0.06538877,3109.3,3108.6,2.384]
[1720652393294,0.06538877,3109.3,3108.7,0.718]
[1720652393589,0.06538877,3109.3,3108.8,0.3102]
[1720652399440,0.06538877,3109.3,3108.6,2.384]
[1720652400431,0.718,3109.1,3108.2,0.55]
[1720652403447,2.3356,3109.2,3108.3,0.718]
[1720652403811,2.3356,3109.2,3108.2,0.55]
[1720652403812,0.718,3109.1,3108.2,0.55]
[1720652404115,2.3208,3108.9,3108.2,0.55]
[1720652406844,2.3208,3108.9,3108.1,0.55]
[1720652408355,2.3208,3108.9,3107.8,5.4132]
[1720652408576,2.2654,3108.6,3107.7,0.718]
[1720652409259,2.2654,3108.6,3107.9,0.718]
[1720652409566,2.2654,3108.6,3107.7,0.718]
[1720652409920,2.2654,3108.6,3107.8,0.55]
[1720652410631,2.2654,3108.6,3107.6,3.0]
[1720652410838,2.266,3108.4,3107.7,0.718]
[1720652411348,2.266,3108.4,3107.4,3.0]
[1720652411537,2.266,3108.4,3107.7,0.718]
[1720652413060,0.33684933,3108.3,3107.7,0.718]
[1720652413464,0.33684933,3108.3,3107.5,0.55]
[1720652413465,0.33684933,3108.3,3107.9,0.718]
[1720652414330,2.266,3108.4,3107.9,0.718]
[1720652415079,2.3496,3108.8,3107.9,1.03133]
[1720652415240,2.3496,3108.8,3108.1,0.718]
[1720652415434,2.3496,3108.8,3108.2,2.4081]
[1720652415783,0.05069299,3108.7,3108.3,0.718]
[1720652416137,3.0,3109.1,3108.3,0.718]
[1720652416341,0.62068,3109.1,3108.3,0.718]
[1720652416562,3.62068,3109.1,3108.3,0.718]
[1720652418750,3.62068,3109.1,3108.2,2.4081]
[1720652419074,4.33868,3109.1,3108.2,2.4081]
[1720652419272,0.05082493,3109.0,3108.2,2.4081]
[1720652419479,0.05082493,3109.0,3108.2,2.72071]
[1720652419662,0.33684926,3108.9,3108.2,2.72071]
[1720652419862,0.38762955,3108.9,3108.2,2.72071]
[1720652426170,2.4592,3108.8,3108.0,2.3461]
[1720652426375,2.4592,3108.8,3108.1,0.55]
[1720652426651,0.05074797,3108.7,3108.1,0.55]
[1720652426851,2.4592,3108.8,3108.1,0.55]
[1720652427092,0.05070726,3108.6,3108.1,0.55]
[1720652427393,2.4592,3108.8,3108.0,0.55]
[1720652427744,0.0507519,3108.7,3108.0,0.55]
[1720652428348,0.35648012,3108.7,3107.7,2.4023]
[1720652428644,1.07448012,3108.7,3107.7,3.1203]
[1720652429503,2.2552,3108.6,3107.7,3.1203]
[1720652429787,2.2552,3108.6,3107.8,0.55]
[1720652430901,0.718,3108.5,3107.6,3.0]
[1720652431066,0.718,3108.5,3107.5,0.718]
[1720652431067,2.3315,3108.4,3107.7,0.55]
[1720652431258,2.3315,3108.4,3107.6,0.55]
[1720652431901,0.05052814,3108.3,3107.6,0.55]
[1720652434971,0.33686974,3108.2,3107.6,0.55]
[1720652435467,0.04966603,3108.1,3107.6,0.55]
[1720652438307,0.04966603,3108.1,3107.4,2.3553]
[1720652438471,2.3785,3108.0,3107.3,0.718]
[1720652438671,0.3146166,3107.9,3107.1,3.0897]
[1720652439888,0.3146166,3107.9,3107.2,0.55]
[1720652440201,2.42818127,3108.0,3107.3,0.718]
[1720652447399,0.04968127,3108.0,3107.5,0.718]
[1720652447722,0.33686974,3108.2,3107.6,0.55]
[1720652448229,0.04955303,3108.1,3107.6,0.55]
[1720652449831,0.04955303,3108.1,3107.7,0.718]
[1720652450401,0.04955303,3108.1,3107.8,2.3809]
[1720652450907,0.04955303,3108.1,3107.8,2.74579]
[1720652451176,0.04955303,3108.1,3107.9,0.718]
[1720652451434,0.33686974,3108.2,3108.0,0.55]
[1720652451658,0.33686974,3108.2,3108.1,0.718]
[1720652451935,0.33686974,3108.2,3108.1,1.268]
[1720652452748,0.33686974,3108.2,3108.1,0.55]
[1720652452927,0.33686974,3108.2,3107.8,2.74579]
[1720652452928,0.38651262,3108.2,3108.0,0.55]
[1720652453134,0.38651262,3108.2,3107.9,0.55]
[1720652453444,0.33686974,3108.2,3107.9,0.55]
[1720652453599,0.33686974,3108.2,3107.6,2.3301]
[1720652453801,0.04977628,3108.1,3107.7,0.55]
[1720652454021,0.33686974,3108.2,3107.7,0.55]
[1720652454238,0.04977628,3108.1,3107.7,0.55]
[1720652454731,0.33686974,3108.2,3107.7,0.55]
[1720652454911,2.3258,3108.4,3107.7,0.55]
[1720652455099,2.63018,3108.4,3107.7,0.55]
[1720652455305,0.04987636,3108.3,3107.7,0.55]
[1720652456248,0.04987636,3108.3,3107.3,2.2721]
[1720652456394,0.04987636,3108.3,3107.6,0.718]
[1720652461838,0.04987636,3108.3,3107.7,2.2817]
[1720652462040,0.04987636,3108.3,3107.8,1.56797]
[1720652463209,0.04987636,3108.3,3107.8,1.268]
[1720652472856,0.04987636,3108.3,3107.8,0.55]
[1720652473049,0.70864908,3108.3,3107.7,1.268]
[1720652473254,0.04987636,3108.3,3107.7,1.268]
[1720652474879,0.70867515,3108.3,3107.7,1.268]
[1720652475067,1.01212267,3108.3,3107.7,1.268]
[1720652475377,0.35332388,3108.3,3107.7,1.268]
[1720652479695,2.62352388,3108.3,3107.7,0.718]
[1720652479848,0.65884168,3108.2,3107.2,6.02547609]
[1720652480055,2.92910763,3108.1,3107.3,0.718]
[1720652480289,2.2702,3108.0,3107.3,0.718]
[1720652480500,2.4686,3107.9,3107.3,0.718]
[1720652480880,0.04682958,3107.8,3107.3,0.718]
[1720652481559,2.4686,3107.9,3107.4,0.55]
[1720652481977,0.04666161,3107.8,3107.4,0.55]
[1720652483677,0.04666161,3107.8,3107.5,0.718]
[1720652483880,3.0740654,3108.3,3107.7,0.718]
[1720652484099,2.4152,3108.3,3107.7,0.718]
[1720652484276,0.04672032,3108.2,3107.7,0.718]
[1720652485424,0.04672032,3108.2,3107.9,0.718]
[1720652485916,2.3487,3108.8,3108.1,0.718]
[1720652486124,0.65861104,3108.7,3108.1,0.718]
[1720652486491,0.65861104,3108.7,3108.2,0.55]
[1720652487494,0.04449869,3108.6,3108.2,0.55]
[1720652487798,0.04449869,3108.6,3108.0,0.55]
[1720652488930,2.2677,3108.5,3108.0,0.55]
[1720652489105,2.31217803,3108.5,3108.0,0.55]
[1720652490729,2.31217803,3108.5,3107.9,0.718]
[1720652490929,2.54339583,3108.5,3107.9,0.718]
[1720652491515,2.54339583,3108.5,3107.7,0.718]
[1720652491908,0.65877648,3108.4,3107.7,0.718]
[1720652492228,2.91878993,3108.3,3107.7,0.718]
[1720652492408,2.26,3108.3,3107.7,0.718]
[1720652492734,0.27508613,3108.2,3107.5,0.718]
[1720652492903,0.0446309,3108.2,3107.5,0.718]
[1720652495002,0.0446309,3108.2,3107.7,0.718]
[1720652495204,2.26,3108.3,3107.8,0.55]
[1720652495903,0.04451988,3108.2,3107.8,0.55]
[1720652496335,2.26,3108.3,3107.8,0.55]
[1720652496737,0.04451988,3108.2,3107.8,0.55]
[1720652496920,2.26,3108.3,3107.8,0.55]
[1720652497318,0.0444719,3108.2,3107.8,0.55]
[1720652497631,2.26,3108.3,3107.8,0.55]
[1720652498036,0.04340856,3108.2,3107.8,0.55]
[1720652498334,2.26,3108.3,3107.8,0.55]
[1720652498742,0.04340856,3108.2,3107.8,0.55]
[1720652499040,2.26,3108.3,3107.8,0.55]
[1720652499537,0.04340856,3108.2,3107.8,0.55]
[1720652499714,2.26,3108.3,3107.8,0.55]
[1720652499896,0.0433639,3108.1,3107.8,0.55]
[1720652500102,2.26,3108.3,3107.8,0.91803]
[1720652500732,0.04340856,3108.2,3107.8,0.91803]
[1720652501103,2.26,3108.3,3107.8,0.91803]
[1720652501535,0.04344993,3108.2,3107.8,0.91803]
[1720652501772,2.26,3108.3,3107.8,0.91803]
[1720652502068,0.04344993,3108.2,3107.8,0.91803]
[1720652502256,2.26,3108.3,3107.8,0.91803]
[1720652502458,0.04344993,3108.2,3107.8,0.91803]
[1720652502658,2.26,3108.3,3107.8,0.91803]
[1720652502829,0.04344993,3108.2,3107.8,0.91803]
[1720652503032,0.33677445,3108.1,3107.8,0.91803]
[1720652504276,0.33677445,3108.1,3107.9,0.881603]
[1720652504452,0.04321664,3108.0,3107.9,0.881603]
[1720652504649,0.33677445,3108.1,3107.9,2.00192275]
[1720652504861,0.33677445,3108.1,3107.9,0.881603]
[1720652505936,9.8149,3109.0,3108.0,5.89758496]
[1720652506140,2.3749,3109.0,3108.5,0.718]
[1720652506345,0.33677006,3108.7,3108.5,0.718]
[1720652507261,0.33677006,3108.7,3108.4,2.4826]
[1720652507459,0.33677006,3108.7,3108.4,3.2006]
[1720652508188,0.33677006,3108.7,3108.4,0.718]
[1720652510356,0.33677006,3108.7,3108.4,1.03806]
[1720652511460,0.33677006,3108.7,3108.6,0.718]
[1720652513087,0.33677006,3108.7,3108.5,0.55]
[1720652514965,2.2549,3109.2,3108.5,0.55]
[1720652515296,0.3781634,3109.1,3108.4,0.718]
[1720652515592,2.3464,3108.9,3108.0,0.718]
[1720652515882,0.0413961,3108.8,3108.0,0.718]
[1720652516049,2.3464,3108.9,3108.0,0.718]
[1720652516250,0.04147939,3108.8,3108.0,0.718]
[1720652516457,2.3464,3108.9,3108.2,0.718]
[1720652516658,0.34791939,3108.8,3108.2,0.718]
[1720652516858,0.30644,3108.8,3108.2,0.718]
[1720652518065,0.04135146,3108.7,3108.2,0.718]
[1720652518266,2.3464,3108.9,3108.2,0.718]
[1720652518476,0.0413961,3108.8,3108.2,0.718]
[1720652522474,0.0413961,3108.8,3108.3,0.55]
[1720652522922,2.3148,3108.7,3108.3,0.55]
[1720652523293,0.04088373,3108.6,3108.3,0.55]
[1720652524315,0.04088373,3108.6,3108.0,0.718]
[1720652524316,0.2764521,3108.6,3108.0,0.718]
[1720652524519,0.04088373,3108.6,3108.1,0.55]
[1720652524898,2.3148,3108.7,3108.1,0.55]
[1720652526540,2.3148,3108.7,3107.9,1.268]
[1720652526754,2.3279,3108.5,3107.9,1.268]
[1720652528313,0.04074459,3108.4,3107.9,1.268]
[1720652530842,2.4958,3108.3,3107.9,1.268]
[1720652531231,0.04055931,3108.2,3107.9,1.268]
[1720652531540,2.4958,3108.3,3107.9,1.268]
[1720652531705,2.4958,3108.3,3107.6,3.0]
[1720652531906,2.4958,3108.3,3107.7,0.718]
[1720652532111,2.4958,3108.3,3107.5,3.0]
[1720652532112,2.74538,3108.3,3107.5,3.0]
[1720652532418,2.74538,3108.3,3107.6,0.718]
[1720652535844,2.74419288,3108.3,3107.6,0.718]
[1720652536045,2.49461288,3108.3,3107.6,0.718]
[1720652536250,0.04050834,3108.2,3107.6,0.718]
[1720652537138,0.79927208,3108.6,3107.6,0.718]
[1720652537654,0.04060635,3108.5,3107.6,0.718]
[1720652538718,2.2953,3108.4,3107.6,0.718]
[1720652538929,2.33581704,3108.3,3107.6,0.718]
[1720652539755,0.04051704,3108.3,3107.8,0.718]
[1720652539960,0.04051704,3108.3,3108.0,0.718]
[1720652540169,2.451,3108.5,3108.0,0.718]
[1720652540338,0.04042869,3108.2,3108.0,0.718]
[1720652540538,2.451,3108.5,3108.0,0.718]
[1720652540930,0.040518,3108.4,3108.0,0.718]
[1720652542281,0.040518,3108.4,3107.8,0.718]
[1720652542666,0.040518,3108.4,3107.6,2.3652]
[1720652542882,2.4427,3108.3,3107.5,0.718]
[1720652543177,2.4427,3108.3,3107.6,0.55]
[1720652548288,2.4427,3108.3,3107.7,0.718]
[1720652548495,0.03957763,3108.2,3107.7,0.718]
[1720652548689,0.03957763,3108.2,3107.9,0.718]
[1720652548897,2.4427,3108.3,3107.9,0.718]
[1720652549357,0.03954352,3108.2,3107.7,3.1061]
[1720652549562,2.4427,3108.3,3107.8,0.36561]
[1720652549790,0.0394634,3108.1,3107.8,0.36561]
[1720652549958,2.4427,3108.3,3107.8,0.36561]
[1720652550196,0.03943262,3108.0,3107.8,0.36561]
[1720652550492,2.4427,3108.3,3107.8,0.36561]
[1720652550880,0.03952195,3108.2,3107.8,0.36561]
[1720652551201,2.4427,3108.3,3107.8,0.36561]
[1720652551408,0.03947729,3108.1,3107.8,0.36561]
[1720652551641,0.03952195,3108.2,3107.9,0.347171]
[1720652551927,2.4427,3108.3,3107.9,0.347171]
[1720652552424,0.03947395,3108.2,3107.9,0.347171]
[1720652552721,2.4427,3108.3,3107.9,0.347171]
[1720652553030,0.03948784,3108.2,3107.9,0.347171]
[1720652553188,2.4427,3108.3,3107.9,0.347171]
[1720652553389,0.03941918,3108.1,3107.9,0.347171]
[1720652553600,2.4427,3108.3,3107.9,0.347171]
[1720652553800,0.03939851,3108.0,3107.7,3.1061]
[1720652554020,2.4427,3108.3,3107.7,3.1061]
[1720652554224,0.03935385,3107.9,3107.7,3.1061]
[1720652554423,2.4427,3108.3,3107.7,3.1061]
[1720652554611,0.03927764,3107.8,3107.7,3.1061]
[1720652554828,2.4427,3108.3,3107.7,3.47171]
[1720652555030,0.03927764,3107.8,3107.7,3.47171]
[1720652555335,2.4427,3108.3,3107.7,3.47171]
[1720652555538,0.03940077,3108.2,3107.7,3.47171]
[1720652555928,2.4427,3108.3,3107.7,3.47171]
[1720652556232,0.03940077,3108.2,3107.7,3.47171]
[1720652556437,2.4427,3108.3,3107.7,3.47171]
[1720652556734,0.03941465,3108.2,3107.7,3.47171]
[1720652557234,2.4427,3108.3,3107.7,3.47171]
[1720652557438,0.03936999,3108.1,3107.7,3.47171]
[1720652557648,2.4427,3108.3,3107.8,0.402171]
[1720652557816,2.4427,3108.3,3107.7,3.1061]
[1720652558004,0.03941465,3108.2,3107.7,3.1061]
[1720652558202,2.4427,3108.3,3107.7,3.1061]
[1720652558401,0.03938387,3108.1,3107.7,3.1061]
[1720652558600,2.4427,3108.3,3107.7,3.1061]
[1720652558813,0.03929121,3108.0,3107.7,3.1061]
[1720652559016,2.4427,3108.3,3107.8,0.36561]
[1720652559216,0.03927054,3107.9,3107.7,3.1061]
[1720652559418,2.4427,3108.3,3107.7,3.1061]
[1720652559618,0.03922587,3107.8,3107.7,3.1061]
[1720652559846,2.4427,3108.3,3107.7,3.1061]
[1720652560344,0.03940454,3108.2,3107.7,3.1061]
[1720652560514,0.03940454,3108.2,3107.7,1.08361]
[1720652560720,2.4427,3108.3,3107.7,1.08361]
[1720652561049,0.03939443,3108.2,3107.7,1.08361]
[1720652561554,2.4427,3108.3,3107.7,1.08361]
[1720652562057,0.03938628,3108.2,3107.7,1.08361]
[1720652562413,2.4427,3108.3,3107.7,1.08361]
[1720652562609,0.03934162,3108.1,3107.7,1.08361]
[1720652562806,2.4427,3108.3,3107.7,1.08361]
[1720652563050,0.03929695,3108.0,3107.7,1.08361]
[1720652563251,2.4427,3108.3,3107.7,1.08361]
[1720652563449,2.4427,3108.3,3107.7,0.718]
[1720652563756,0.03934463,3108.2,3107.7,0.718]
[1720652564125,2.4427,3108.3,3107.7,0.718]
[1720652564546,0.03935851,3108.2,3107.7,0.718]
[1720652564737,2.4427,3108.3,3107.7,0.718]
[1720652564928,0.03935851,3108.2,3107.7,1.07114]
[1720652565348,2.4427,3108.3,3107.7,1.07114]
[1720652565773,0.03935851,3108.2,3107.7,1.07114]
[1720652566128,2.4427,3108.3,3107.7,1.07114]
[1720652566326,0.03935851,3108.2,3107.7,1.07114]
[1720652566781,2.4427,3108.3,3107.7,1.07114]
[1720652567144,0.03932774,3108.1,3107.7,1.07114]
[1720652567444,0.0393724,3108.2,3107.7,1.07114]
[1720652567645,2.4427,3108.3,3107.7,1.07114]
[1720652567849,0.03933769,3108.1,3107.7,1.07114]
[1720652568050,2.4427,3108.3,3107.7,1.07114]
[1720652568376,0.03929302,3108.0,3107.7,1.07114]
[1720652568678,2.4427,3108.3,3107.8,0.162114]
[1720652568973,2.4427,3108.3,3107.7,0.718]
[1720652569179,0.03938235,3108.2,3107.7,0.718]
[1720652569676,2.4427,3108.3,3107.7,0.718]
[1720652570041,0.0393407,3108.2,3107.7,0.718]
[1720652570537,2.4427,3108.3,3107.7,0.718]
[1720652571178,0.03935458,3108.2,3107.7,0.718]
[1720652571680,2.4427,3108.3,3107.7,0.718]
[1720652572185,0.03935261,3108.2,3107.7,0.718]
[1720652572353,2.4427,3108.3,3107.7,0.718]
[1720652572779,0.0393665,3108.2,3107.8,1.12039793]
[1720652573076,2.4427,3108.3,3107.7,0.718]
[1720652573562,0.03938038,3108.2,3107.7,0.718]
[1720652573759,0.03938038,3108.2,3107.7,1.13864505]
[1720652573959,2.4427,3108.3,3107.7,1.13864505]
[1720652574138,2.4427,3108.3,3107.8,1.12039913]
[1720652574334,2.4427,3108.3,3107.7,1.13864505]
[1720652574562,0.03938038,3108.2,3107.8,1.12039954]
[1720652574769,2.4427,3108.3,3107.7,1.13864505]
[1720652574974,2.4427,3108.3,3107.8,1.12039938]
[1720652575138,0.03937644,3108.2,3107.7,1.13864505]
[1720652575339,0.03937644,3108.2,3107.8,1.12039916]
[1720652575539,2.4427,3108.3,3107.7,0.718]
[1720652575982,0.03933873,3108.2,3107.7,0.718]
[1720652576192,2.4427,3108.3,3107.7,0.718]
[1720652576599,0.03933873,3108.2,3107.7,0.718]
[1720652576800,2.4427,3108.3,3107.6,0.55]
[1720652577313,2.4427,3108.3,3107.7,1.12042238]
[1720652577502,2.4427,3108.3,3107.6,0.55]
[1720652577677,2.4427,3108.3,3107.7,2.8010464]